bitfinex-derivatives/quotes_ETHF0:USTF0_20260310
["timestamp","ask_amount","ask_price","bid_price","bid_amount"]
[1773154837517,0.00451516,2080.5,2079.4,0.54729991]
[1773154837918,0.55402686,2080.5,2079.4,0.54729991]
[1773154838219,0.55402686,2080.5,2079.5,6.85129991]
[1773154838520,0.00451516,2080.5,2079.6,6.70198991]
[1773154838725,0.00451516,2080.5,2079.7,0.54729991]
[1773154839722,0.00451516,2080.5,2079.9,0.54729991]
[1773154839920,0.5495117,2081.7,2080.1,0.54729991]
[1773154840119,0.5495117,2081.7,2080.6,0.2403]
[1773154840322,0.5495117,2081.7,2080.4,6.303]
[1773154840617,0.5495117,2081.7,2080.2,6.303]
[1773154841015,0.55553457,2081.7,2080.2,0.00521661]
[1773154841221,0.5495117,2081.5,2080.2,0.00521661]
[1773154841417,0.5495117,2081.3,2079.5,6.84929991]
[1773154841622,0.5495117,2081.3,2079.7,0.54729991]
[1773154842224,0.5495117,2081.3,2079.8,6.302]
[1773154842427,0.5495117,2081.3,2079.8,0.55187978]
[1773154842628,0.5495117,2081.3,2079.9,0.54729991]
[1773154843126,0.5495117,2081.3,2080.0,6.301]
[1773154843325,0.5495117,2081.3,2079.9,0.54729991]
[1773154843527,0.5495117,2081.3,2079.9,6.301]
[1773154843721,0.5495117,2081.3,2079.8,6.30557987]
[1773154844025,0.5495117,2081.3,2079.8,6.85287978]
[1773154844324,0.5495117,2081.3,2079.9,0.54729991]
[1773154844922,0.5495117,2081.3,2080.1,0.54729991]
[1773154845226,0.5495117,2081.6,2080.4,0.24032]
[1773154845422,0.5495117,2081.6,2080.2,0.56582366]
[1773154845622,0.5495117,2081.6,2080.3,6.86582366]
[1773154845825,0.5495117,2081.6,2080.3,0.56582366]
[1773154846529,0.60278842,2081.7,2080.5,0.56582366]
[1773154846729,0.60278842,2081.7,2080.7,0.56582366]
[1773154847024,0.00602287,2081.7,2080.8,0.56582366]
[1773154847224,0.00602287,2081.7,2080.8,6.86582366]
[1773154847426,0.59676555,2082.2,2081.1,0.56582366]
[1773154848128,0.59676555,2082.2,2081.0,6.299]
[1773154848429,0.59676555,2082.2,2081.1,0.56582366]
[1773154848732,0.60274366,2082.2,2080.8,0.56582366]
[1773154848932,0.60274366,2082.2,2080.5,0.56582366]
[1773154849229,0.59676555,2082.0,2080.2,0.59924681]
[1773154849428,0.58790707,2081.2,2079.8,0.00457987]
[1773154849631,0.58790707,2081.0,2079.8,0.00457987]
[1773154849933,0.58790707,2080.6,2079.8,0.00457987]
[1773154850133,0.58790707,2080.4,2079.0,6.89724681]
[1773154850633,0.58790707,2080.4,2079.2,0.59924681]
[1773154850828,0.00466672,2080.6,2079.4,0.59924681]
[1773154851028,0.00466672,2080.6,2079.4,0.6051481]
[1773154851226,0.00466672,2080.6,2079.6,0.59924681]
[1773154851427,0.58790707,2081.4,2080.2,0.59924681]
[1773154851728,0.58790707,2081.4,2080.5,0.59924681]
[1773154852029,0.58790707,2082.2,2080.8,0.59924681]
[1773154852233,0.58790707,2082.0,2080.5,0.59924681]
[1773154852428,0.59372388,2082.0,2080.5,0.59924681]
[1773154852932,0.58790707,2081.6,2080.1,0.59924681]
[1773154853330,0.58790707,2081.6,2080.3,0.59924681]
[1773154854040,0.58790707,2081.6,2080.5,0.59924681]
[1773154854334,0.00581681,2082.0,2080.4,6.15231]
[1773154854335,0.58790707,2081.9,2080.4,0.59924681]
[1773154854536,0.58790707,2081.5,2080.1,0.59924681]
[1773154854736,0.58790707,2081.4,2080.1,0.59924681]
[1773154855630,0.58790707,2081.9,2080.3,0.59924681]
[1773154855830,0.58790707,2081.9,2080.5,0.59924681]
[1773154856732,0.58790707,2081.7,2080.5,0.59924681]
[1773154857136,0.58790707,2081.5,2079.8,0.59924681]
[1773154857331,0.53790707,2081.5,2079.8,0.59924681]
[1773154858226,0.58790707,2081.3,2079.8,0.59924681]
[1773154858430,0.58790707,2081.1,2079.8,0.59924681]
[1773154859333,0.58790707,2081.0,2079.8,0.59924681]
[1773154859538,0.58790707,2081.0,2079.5,0.59924681]
[1773154859831,0.58790707,2080.8,2079.5,0.59924681]
[1773154860034,0.58790707,2080.8,2079.7,0.59924681]
[1773154860230,6.297,2080.9,2079.4,0.00590129]
[1773154860231,0.58790707,2080.6,2079.4,0.6051481]
[1773154860632,0.58790707,2080.2,2079.4,0.00590129]
[1773154861041,0.59350224,2080.2,2079.4,0.00590129]
[1773154861239,0.58790707,2079.8,2078.6,3.65875323]
[1773154861439,0.58790707,2079.4,2078.2,0.59924681]
[1773154861639,0.58790707,2079.2,2077.9,0.59924681]
[1773154861837,0.58790707,2079.2,2078.0,5.52344849]
[1773154862140,0.58790707,2079.2,2078.0,0.00442555]
[1773154862336,0.24049,2078.9,2077.4,3.65875323]
[1773154862640,0.58790707,2078.6,2077.0,0.59924681]
[1773154862843,6.297,2079.3,2077.0,0.59924681]
[1773154862844,0.58790707,2079.6,2078.0,0.59924681]
[1773154863135,0.58790707,2079.6,2078.3,0.59924681]
[1773154863339,0.58790707,2079.6,2078.5,0.59924681]
[1773154863537,0.00454701,2079.6,2078.6,5.49844712]
[1773154863739,0.58790707,2079.5,2078.5,0.00439046]
[1773154863940,0.58790707,2079.5,2078.5,0.60363727]
[1773154864136,0.00454701,2079.6,2078.5,0.60363727]
[1773154864339,0.58790707,2080.1,2078.9,0.59924681]
[1773154864636,0.58790707,2080.4,2079.1,0.59924681]
[1773154865440,0.58790707,2080.2,2079.1,0.59924681]
[1773154866238,0.58690707,2080.2,2079.1,0.59924681]
[1773154866538,0.58690707,2080.2,2078.8,0.59924681]
[1773154866740,0.58690707,2080.2,2079.0,0.59924681]
[1773154867044,0.59123867,2080.4,2079.2,0.59924681]
[1773154867840,0.58790707,2080.3,2078.9,0.59924681]
[1773154868135,0.58790707,2080.1,2078.5,3.90367369]
[1773154868341,0.58790707,2079.9,2078.6,6.09381272]
[1773154868540,0.58790707,2079.9,2078.5,0.60363727]
[1773154868541,0.82829707,2079.8,2078.5,0.60363727]
[1773154868748,0.58790707,2079.5,2078.5,0.00439046]
[1773154868945,0.58790707,2079.5,2077.9,5.6877305]
[1773154868946,0.58690707,2079.3,2077.9,0.59924681]
[1773154869244,0.58690707,2079.3,2078.1,0.59924681]
[1773154869635,0.58790707,2079.6,2078.3,0.59924681]
[1773154869842,0.58790707,2079.5,2078.3,0.59924681]
[1773154870039,0.58690707,2079.5,2078.3,0.60538789]
[1773154871145,0.58590707,2079.5,2078.3,0.60538789]
[1773154871739,0.58790707,2079.3,2078.3,0.00614108]
[1773154871938,0.58790707,2078.9,2077.7,0.59924681]
[1773154872243,0.24048,2079.0,2077.7,0.59924681]
[1773154872244,0.58790707,2078.8,2077.7,0.59924681]
[1773154872446,0.24036,2080.1,2078.0,0.59924681]
[1773154872648,0.58790707,2079.8,2078.2,0.59924681]
[1773154872944,0.58790707,2079.6,2078.4,0.59924681]
[1773154873151,0.593056,2079.6,2078.4,0.60332952]
[1773154873448,0.593056,2079.6,2078.6,0.59924681]
[1773154874040,0.00514893,2079.6,2078.6,0.59924681]
[1773154874247,0.58790707,2079.9,2078.8,0.59924681]
[1773154874547,0.58790707,2080.1,2078.8,0.59924681]
[1773154875348,0.59249254,2080.1,2078.8,0.59924681]
[1773154876646,0.00458547,2080.1,2079.0,0.59924681]
[1773154876847,0.00458547,2080.1,2079.2,0.59924681]
[1773154877047,0.00458547,2080.1,2079.4,0.59924681]
[1773154877249,0.58790707,2080.4,2079.4,0.59924681]
[1773154878048,6.88790707,2080.7,2079.5,0.59924681]
[1773154878250,0.59354624,2080.7,2079.7,0.59924681]
[1773154878652,0.00563917,2080.7,2079.7,0.59924681]
[1773154878948,0.00563917,2080.7,2079.9,0.59924681]
[1773154879247,0.00563917,2080.7,2079.9,0.60338358]
[1773154879752,0.57307926,2080.6,2079.9,0.00413677]
[1773154879952,0.00563917,2080.7,2079.9,0.57899178]
[1773154880551,0.57871843,2080.7,2079.9,0.57899178]
[1773154880751,0.00563917,2080.7,2079.9,0.57899178]
[1773154881745,0.57307926,2081.5,2080.1,0.57485501]
[1773154881944,0.57307926,2081.5,2080.3,0.57485501]
[1773154882654,0.57307926,2081.5,2080.5,0.57485501]
[1773154882952,0.57776705,2081.5,2080.1,0.57485501]
[1773154883148,0.57307926,2081.3,2079.9,0.57899178]
[1773154883354,0.57307926,2081.1,2079.9,0.57899178]
[1773154883650,0.24023,2081.2,2079.9,0.57899178]
[1773154883651,0.57307926,2081.0,2080.0,5.44693469]
[1773154883849,0.57307926,2081.0,2080.1,0.57485501]
[1773154884754,0.57307926,2081.0,2079.9,0.00413677]
[1773154885150,0.57307926,2080.2,2079.2,0.57485501]
[1773154885354,0.57307926,2080.1,2078.9,0.57485501]
[1773154885550,0.57307926,2080.1,2078.8,0.001]
[1773154885551,0.57307926,2080.1,2079.0,6.03454199]
[1773154885754,0.57307926,2080.1,2079.0,0.57485501]
[1773154886351,0.57307926,2080.1,2079.0,0.5796841]
[1773154886546,6.298,2080.2,2079.0,0.00482909]
[1773154886547,0.57307926,2079.7,2079.0,0.00482909]
[1773154886752,0.57307926,2079.5,2078.8,0.001]
[1773154887056,0.57307926,2079.5,2078.4,0.57485501]
[1773154887459,0.57307926,2079.3,2078.1,0.57485501]
[1773154887760,0.00614364,2079.3,2078.3,0.57485501]
[1773154888059,0.5792229,2079.3,2078.1,0.57961065]
[1773154888255,0.57307926,2079.2,2078.1,0.57961065]
[1773154888753,0.57307926,2079.2,2078.1,0.00475564]
[1773154889155,0.57307926,2079.2,2078.1,0.57961065]
[1773154889755,0.57307926,2079.0,2077.7,0.57485501]
[1773154890060,0.24047,2079.1,2077.9,0.57485501]
[1773154890061,6.299,2078.9,2077.9,0.57485501]
[1773154890358,0.57307926,2079.1,2078.1,0.57485501]
[1773154890759,0.57307926,2079.1,2078.1,0.58029733]
[1773154891361,0.00614364,2079.3,2078.3,0.57485501]
[1773154891753,0.00614364,2079.3,2078.5,0.57485501]
[1773154891953,0.57307926,2080.1,2078.9,0.57485501]
[1773154892159,0.57307926,2080.7,2079.3,0.57485501]
[1773154892563,0.57307926,2080.7,2079.4,0.57485501]
[1773154892959,0.57675907,2080.7,2079.4,0.57485501]
[1773154893560,0.00367981,2080.7,2079.8,0.57485501]
[1773154893865,0.00367981,2080.7,2079.8,0.57966824]
[1773154895769,0.57675907,2080.7,2079.8,0.57966824]
[1773154896463,0.57675907,2080.7,2079.8,0.00481323]
[1773154896867,0.57307926,2080.5,2079.3,0.57485501]
[1773154897161,0.57307926,2080.3,2079.1,0.57485501]
[1773154897564,0.57307926,2080.3,2079.3,0.57485501]
[1773154897963,0.57307926,2080.3,2079.3,0.57851474]
[1773154898164,0.57307926,2080.5,2079.3,0.57851474]
[1773154899462,0.57307926,2080.5,2079.5,0.57485501]
[1773154900863,0.57307926,2080.5,2079.3,0.00365973]
[1773154901068,0.57307926,2080.5,2079.3,0.57851474]
[1773154901569,0.57307926,2080.4,2079.3,0.57851474]
[1773154902764,0.57307926,2080.2,2079.3,0.00365973]
[1773154903265,0.57307926,2079.8,2078.7,0.57485501]
[1773154903569,0.57307926,2079.6,2078.7,0.57485501]
[1773154903768,0.57307926,2079.6,2078.3,10.19731323]
[1773154903769,0.57307926,2079.6,2078.4,0.57485501]
[1773154903963,0.57307926,2079.6,2078.5,5.27575781]
[1773154904167,0.24038,2079.9,2078.5,5.27575781]
[1773154904168,0.57307926,2079.9,2078.7,0.57485501]
[1773154904359,0.57307926,2079.9,2078.9,0.57485501]
[1773154905367,0.57307926,2079.4,2078.4,0.57485501]
[1773154905572,5.91333,2080.0,2078.4,0.57485501]
[1773154905573,0.57307926,2079.2,2078.4,0.57485501]
[1773154905872,6.299,2079.4,2078.4,0.57485501]
[1773154906072,0.57307926,2079.5,2078.4,0.57485501]
[1773154906777,0.00529504,2079.5,2078.6,0.54729213]
[1773154906969,0.00529504,2079.5,2078.8,0.54729213]
[1773154907473,0.55766115,2080.1,2078.8,0.54729213]
[1773154907668,0.55766115,2080.1,2079.0,0.54729213]
[1773154907870,0.55766115,2080.1,2078.5,0.24054]
[1773154907871,0.55766115,2080.4,2079.2,0.54729213]
[1773154908170,6.85666115,2080.7,2079.4,0.54729213]
[1773154908473,0.56274105,2080.7,2079.6,0.54729213]
[1773154908869,0.0050799,2080.7,2079.7,0.54729213]
[1773154909269,0.0050799,2080.7,2079.9,0.59310345]
[1773154909470,0.55547768,2080.7,2079.9,0.59760892]
[1773154909674,0.55547768,2080.7,2079.9,0.00450547]
[1773154910974,0.55547768,2080.7,2079.6,0.59310345]
[1773154911176,0.55039778,2080.4,2079.3,0.59310345]
[1773154911671,0.55547768,2080.7,2079.6,0.59310345]
[1773154911872,0.55547768,2080.7,2079.8,0.59310345]
[1773154912069,0.0050799,2080.7,2079.8,0.59676519]
[1773154912469,0.0050799,2080.7,2080.0,0.59310345]
[1773154913873,0.0050799,2080.7,2080.4,0.59310345]
[1773154914073,20.0,2081.0,2080.4,0.59310345]
[1773154914272,20.0,2081.0,2080.3,0.00130971]
[1773154914467,0.55039778,2080.9,2080.3,0.00130971]
[1773154915074,0.55512633,2080.9,2080.3,0.00130971]
[1773154915475,0.55512633,2080.9,2079.8,0.59676519]
[1773154915769,0.2403,2080.6,2079.2,0.59310345]
[1773154915973,6.46164778,2080.7,2078.8,6.95584247]
[1773154915974,0.24037,2080.0,2078.8,0.59310345]
[1773154916174,0.55039778,2079.8,2078.8,0.59310345]
[1773154916369,0.55039778,2079.6,2078.4,0.59310345]
[1773154916675,0.55039778,2079.4,2078.4,0.59310345]
[1773154916875,0.00528441,2079.4,2078.6,0.59310345]
[1773154917071,0.55568219,2079.4,2078.6,0.59310345]
[1773154918077,0.00528441,2079.4,2078.6,0.59310345]
[1773154918378,0.00528441,2079.4,2078.8,0.59310345]
[1773154918977,0.55039778,2079.9,2078.8,0.59310345]
[1773154919177,0.55039778,2080.1,2078.8,0.59310345]
[1773154919577,0.55039778,2079.7,2078.4,0.00512314]
[1773154919881,0.55039778,2079.5,2078.5,5.86054149]
[1773154920178,0.55039778,2079.5,2078.7,0.59310345]
[1773154920578,0.55039778,2079.5,2078.4,0.59822659]
[1773154920776,0.55039778,2079.3,2078.5,5.2711214]
[1773154920976,0.55039778,2079.3,2078.4,0.00512314]
[1773154921171,0.52815549,2078.9,2078.0,10.0]
[1773154921378,0.24053,2078.6,2078.0,7.85112224]
[1773154921581,6.34599183,2078.8,2078.0,7.85112224]
[1773154922274,6.299,2078.8,2078.1,0.59310345]
[1773154922476,0.04699183,2079.4,2078.1,0.59310345]
[1773154922477,6.299,2079.2,2078.1,0.59310345]
[1773154922781,6.299,2079.5,2078.3,0.59310345]
[1773154924584,0.00528661,2079.7,2078.5,0.59310345]
[1773154925384,0.00528661,2079.7,2078.9,0.59310345]
[1773154925579,0.00528661,2079.7,2078.8,0.24051]
[1773154925580,6.3,2080.2,2079.1,0.59310345]
[1773154926483,6.30534303,2080.2,2079.1,0.59310345]
[1773154927084,0.03960314,2080.1,2079.1,0.59310345]
[1773154927378,0.04416582,2079.9,2078.8,0.59310345]
[1773154927579,0.24037,2080.0,2078.8,0.59310345]
[1773154927883,6.34950885,2080.2,2078.8,0.59310345]
[1773154928277,0.04416582,2079.8,2078.8,0.59310345]
[1773154928478,0.04416582,2079.6,2078.5,0.59310345]
[1773154928674,6.3,2079.5,2078.5,0.59310345]
[1773154928877,0.04416582,2080.0,2078.5,0.59310345]
[1773154928878,0.04416582,2079.9,2078.5,0.59310345]
[1773154929085,0.04416582,2079.7,2078.5,0.59310345]
[1773154929884,0.24041,2079.6,2078.5,0.59310345]
[1773154930778,0.28910231,2079.4,2078.5,0.59310345]
[1773154930973,12.21322,2080.0,2078.5,0.59310345]
[1773154930974,6.3,2079.6,2078.5,0.59310345]
[1773154931178,6.30534303,2080.2,2078.9,0.24049]
[1773154931379,0.00534303,2080.2,2079.2,0.59310345]
[1773154931581,0.00534303,2080.2,2079.3,0.24045]
[1773154931779,0.00534303,2080.2,2079.0,6.3]
[1773154931780,6.3,2080.5,2079.6,0.59310345]
[1773154932086,20.0,2081.0,2079.8,0.59310345]
[1773154932780,20.00594519,2081.0,2079.8,0.59866611]
[1773154932981,20.00594519,2081.0,2080.0,0.59310345]
[1773154933285,0.05435906,2080.7,2079.7,0.59310345]
[1773154933588,6.3,2080.7,2079.7,0.59310345]
[1773154934086,6.3,2080.6,2079.7,0.59310345]
[1773154934280,6.3,2080.6,2079.7,0.5979343]
[1773154934684,6.299,2080.8,2079.7,0.5979343]
[1773154935084,0.24029,2080.7,2079.7,0.5979343]
[1773154935483,0.24029,2080.7,2080.4,0.00132988]
[1773154935680,0.24029,2080.7,2079.9,0.59310345]
[1773154936589,0.24029,2080.7,2079.7,0.00483085]
[1773154936590,0.05536739,2080.6,2079.7,0.00483085]
[1773154937382,0.05705695,2080.4,2079.7,0.00483085]
[1773154937584,6.35605695,2080.3,2079.3,0.59310345]
[1773154937788,6.299,2080.3,2079.3,0.59310345]
[1773154938191,6.299,2080.4,2079.5,0.59310345]
[1773154938588,6.299,2080.4,2079.5,0.59819987]
[1773154939192,6.299,2080.5,2079.5,0.59819987]
[1773154939584,20.00594519,2081.0,2079.7,0.5723707]
[1773154939787,6.35732781,2080.9,2079.7,0.5723707]
[1773154940289,0.05832781,2080.7,2079.7,0.5723707]
[1773154940595,6.299,2080.9,2079.5,0.00509642]
[1773154940596,0.05832781,2080.5,2079.5,0.57746712]
[1773154940786,6.35732781,2080.4,2079.5,0.57746712]
[1773154941293,0.07647556,2080.3,2079.5,0.57746712]
[1773154941588,0.07647556,2080.3,2078.9,5.4471205]
[1773154941589,0.24031,2080.5,2079.3,0.56949765]
[1773154941890,6.299,2080.6,2079.3,0.56949765]
[1773154942093,6.299,2080.6,2079.1,0.24046]
[1773154942094,6.299,2080.5,2079.5,0.56949765]
[1773154942392,0.07137914,2080.3,2079.5,0.56949765]
[1773154942583,0.07137914,2080.1,2079.2,0.56949765]
[1773154942789,0.07137914,2079.7,2078.6,0.56949765]
[1773154943783,0.07137914,2079.7,2078.6,0.57348597]
[1773154943988,6.36920928,2080.0,2078.7,5.19652096]
[1773154944187,0.31054928,2080.3,2078.8,0.56949765]
[1773154944391,6.298,2080.2,2079.0,0.56949765]
[1773154944894,6.299,2080.6,2079.2,0.57742871]
[1773154945088,6.299,2080.6,2079.4,0.57742871]
[1773154945287,6.299,2080.6,2079.5,5.18933564]
[1773154945486,6.299,2080.6,2079.7,0.57742871]
[1773154947401,6.299,2080.7,2079.7,0.57742871]
[1773154947800,6.38306782,2080.7,2079.7,0.57742871]
[1773154948098,0.32437782,2080.5,2079.7,0.57742871]
[1773154948293,6.299,2080.7,2079.7,0.57742871]
[1773154948498,6.298,2080.6,2079.7,0.57742871]
[1773154949892,0.08406782,2080.8,2079.7,0.57742871]
[1773154950198,6.298,2080.7,2079.7,0.57742871]
[1773154950392,20.24620519,2081.0,2079.7,0.57742871]
[1773154950589,6.298,2080.9,2079.9,0.57742871]
[1773154950995,6.38483347,2080.9,2079.9,0.57742871]
[1773154951698,0.08674462,2080.8,2079.9,0.57742871]
[1773154952100,6.298,2080.9,2079.5,0.57742871]
[1773154952101,0.08674462,2080.6,2079.5,0.57742871]
[1773154952600,0.08674462,2080.9,2079.5,0.57742871]
[1773154952901,6.298,2080.8,2079.7,0.57742871]
[1773154953400,0.09052896,2080.7,2079.7,0.57742871]
[1773154954402,0.09052896,2080.7,2079.9,0.57742871]
[1773154954403,6.298,2080.6,2079.9,0.57742871]
[1773154955494,6.298,2080.5,2079.3,5.4471205]
[1773154955700,6.39513609,2080.5,2079.5,0.57742871]
[1773154956005,6.39513609,2080.5,2079.6,5.77681129]
[1773154956203,6.39513609,2080.5,2079.6,0.57742871]
[1773154956501,0.24028,2080.8,2079.6,0.57742871]
[1773154956699,20.00594519,2081.0,2079.8,0.57742871]
[1773154956895,20.00594519,2081.0,2079.5,5.6875405]
[1773154956896,6.298,2080.7,2080.0,0.57742871]
[1773154957302,0.09713609,2080.9,2080.0,0.57742871]
[1773154957602,6.39687904,2080.8,2080.0,0.57742871]
[1773154957805,0.09887904,2080.7,2080.0,0.57742871]
[1773154958100,20.10482423,2081.0,2080.0,0.57742871]
[1773154958301,6.298,2080.9,2080.0,0.57742871]
[1773154959004,20.10482423,2081.0,2080.0,0.57742871]
[1773154959204,6.298,2080.9,2080.0,0.57742871]
[1773154960002,20.00594519,2081.0,2080.1,0.57742871]
[1773154960200,6.39741488,2081.7,2080.7,0.24029]
[1773154960398,6.298,2081.8,2080.9,0.57742871]
[1773154960602,6.298,2081.8,2081.1,0.57742871]
[1773154960907,6.86731683,2081.8,2081.1,0.57742871]
[1773154961111,0.00580405,2081.8,2081.1,0.57742871]
[1773154961304,0.00580405,2081.8,2080.7,0.24029]
[1773154961305,0.00580405,2081.8,2081.3,0.57742871]
[1773154961506,0.24005,2082.8,2081.3,0.57742871]
[1773154961507,0.56931683,2082.5,2081.3,0.57742871]
[1773154961811,0.56931683,2083.2,2081.9,0.57742871]
[1773154962010,0.56931683,2083.1,2081.9,0.57742871]
[1773154962204,0.56931683,2082.9,2081.9,0.57742871]
[1773154962409,6.86731683,2083.2,2081.9,0.57742871]
[1773154962611,0.56931683,2083.0,2081.9,0.58198819]
[1773154963513,6.297,2082.9,2081.9,0.58198819]
[1773154963805,8.409,2084.0,2081.9,0.58198819]
[1773154963806,0.56931683,2083.5,2082.1,0.57742871]
[1773154964211,0.56931683,2083.3,2082.1,0.57742871]
[1773154964402,0.56931683,2083.1,2082.1,0.57742871]
[1773154964605,0.56931683,2082.9,2082.1,0.57742871]
[1773154964804,0.00506979,2082.9,2082.1,0.57742871]
[1773154965308,0.57438662,2082.9,2081.9,0.58198819]
[1773154965514,0.56931683,2082.8,2081.9,0.00455948]
[1773154965815,0.57392853,2082.4,2081.6,0.57742871]
[1773154966006,0.56931683,2082.4,2081.6,0.57742871]
[1773154966210,0.56931683,2082.4,2080.9,0.57742871]
[1773154966809,6.295,2082.4,2081.1,1.25187124]
[1773154967013,1.28403196,2082.8,2081.1,1.25187124]
[1773154967210,1.28403196,2082.6,2081.1,1.25187124]
[1773154967405,1.28403196,2082.4,2081.1,1.25187124]
[1773154967607,1.28864366,2082.4,2081.1,1.25187124]
[1773154967813,1.28403196,2082.4,2081.1,1.25187124]
[1773154968118,1.28403196,2082.2,2081.1,1.25187124]
[1773154968513,0.0046117,2082.3,2081.0,1.25187124]
[1773154968514,0.24013,2082.1,2081.0,1.25187124]
[1773154968714,1.28403196,2082.1,2081.0,1.25187124]
[1773154968920,7.57903196,2082.1,2081.0,1.25187124]
[1773154969320,1.26829105,2082.0,2081.0,1.25187124]
[1773154969822,6.294,2081.9,2081.0,1.25187124]
[1773154970016,1.26829105,2081.9,2080.9,0.00342526]
[1773154970217,1.26829105,2081.6,2080.4,1.35062595]
[1773154970418,1.26829105,2081.4,2080.4,1.35062595]
[1773154970618,1.26829105,2081.2,2079.9,1.35062595]
[1773154970917,1.26829105,2080.8,2079.3,1.35062595]
[1773154971217,6.294,2080.7,2079.5,1.35062595]
[1773154971622,7.56566627,2080.8,2079.5,1.35062595]
[1773154971923,1.26829105,2080.7,2079.5,1.35062595]
[1773154972421,1.27290275,2080.6,2079.5,1.35062595]
[1773154972716,1.26829105,2080.6,2079.5,1.35062595]
[1773154972918,1.26829105,2080.3,2079.3,0.0059808]
[1773154973222,7.56229105,2080.3,2079.3,1.35660675]
[1773154973614,0.00337522,2080.8,2079.3,1.35660675]
[1773154973615,1.26829105,2080.6,2079.3,1.35660675]
[1773154973815,6.295,2080.5,2079.3,1.35660675]
[1773154974217,0.00337522,2080.8,2079.3,1.59704675]
[1773154974414,1.27166627,2080.8,2079.3,1.59704675]
[1773154974614,6.295,2080.7,2079.3,1.59704675]
[1773154975114,7.56329105,2080.7,2079.3,1.59704675]
[1773154975312,1.26829105,2080.6,2079.3,1.59704675]
[1773154975919,1.27290275,2080.6,2079.3,1.35660675]
[1773154976120,1.26829105,2080.6,2079.3,1.35660675]
[1773154976327,1.26829105,2080.0,2079.3,0.0059808]
[1773154976521,6.296,2079.9,2079.3,0.0059808]
[1773154976723,1.26829105,2080.1,2079.3,1.35660675]
[1773154976925,1.26829105,2080.0,2079.3,0.0059808]
[1773154977324,1.26829105,2079.9,2079.3,0.0059808]
[1773154977722,0.0046117,2079.7,2079.0,1.35062595]
[1773154977924,1.26829105,2079.9,2079.0,1.35062595]
[1773154978522,7.56429105,2079.9,2079.0,1.35062595]
[1773154978718,7.56429105,2079.9,2079.0,1.35627017]
[1773154979226,7.56890275,2079.9,2079.0,1.35627017]
[1773154979728,6.296,2079.8,2079.0,1.35627017]
[1773154979930,7.56429105,2079.8,2079.0,1.35627017]
[1773154980224,1.26829105,2079.5,2078.3,1.35062595]
[1773154980427,1.26829105,2079.3,2078.1,1.35062595]
[1773154980626,1.26829105,2079.0,2078.1,1.35062595]
[1773154980825,1.26829105,2078.9,2078.0,7.85112224]
[1773154981023,6.297,2079.1,2078.1,1.35062595]
[1773154981221,1.26829105,2079.6,2078.5,1.35062595]
[1773154981524,1.26829105,2079.6,2078.0,7.85614595]
[1773154981732,1.26829105,2079.3,2078.1,1.35062595]
[1773154981930,7.56529105,2079.2,2078.1,1.35062595]
[1773154982131,7.57119307,2079.2,2078.1,1.35062595]
[1773154982324,1.27419307,2079.2,2078.1,1.35062595]
[1773154982525,0.00590202,2079.2,2078.4,0.24055]
[1773154982727,1.26829105,2080.5,2078.9,1.35062595]
[1773154982929,1.26829105,2080.3,2079.1,1.35062595]
[1773154983427,1.26829105,2079.9,2079.1,1.35062595]
[1773154983630,0.00615041,2079.9,2079.1,1.35062595]
[1773154983826,0.01076211,2079.9,2079.1,1.35062595]
[1773154984227,0.00615041,2079.9,2079.1,1.35062595]
[1773154984429,0.0046117,2079.8,2079.1,1.35062595]
[1773154984928,0.0046117,2079.7,2079.1,1.35062595]
[1773154985128,0.00615041,2079.9,2079.1,1.35062595]
[1773154985332,0.0046117,2079.8,2079.1,1.35062595]
[1773154985829,0.0046117,2079.7,2079.1,1.35062595]
[1773154986132,0.0046117,2079.7,2078.8,0.2405]
[1773154986133,1.27444146,2079.9,2078.8,1.35062595]
[1773154986432,1.26829105,2079.5,2078.5,1.35062595]
[1773154986626,0.24048,2079.0,2078.0,7.85614595]
[1773154986930,0.24055,2078.4,2077.3,1.38419933]
[1773154987132,0.24058,2078.2,2076.6,1.38419933]
[1773154987335,0.73601448,2077.7,2076.6,1.38419933]
[1773154987630,0.73601448,2077.5,2076.6,1.38419933]
[1773154987829,0.73601448,2077.3,2076.0,1.38411167]
[1773154988026,0.73601448,2077.1,2076.0,1.38872396]
[1773154988223,7.03401448,2077.0,2076.0,1.38872396]
[1773154988424,6.298,2077.0,2076.0,1.38872396]
[1773154988625,6.98583641,2077.0,2076.0,1.38872396]
[1773154988830,0.0046117,2076.7,2076.0,1.38872396]
[1773154989632,6.298,2077.0,2076.0,1.38872396]
[1773154989829,0.0046117,2076.8,2076.0,1.38872396]
[1773154990030,0.67233793,2077.2,2076.0,1.38872396]
[1773154990231,6.96925853,2077.1,2076.0,1.38872396]
[1773154990532,0.0046117,2077.0,2076.0,1.38872396]
[1773154990731,0.66925853,2077.0,2076.0,1.38872396]
[1773154990933,0.0046117,2076.7,2076.0,1.38872396]
[1773154991133,6.3,2076.9,2076.0,1.38872396]
[1773154991335,6.3,2077.0,2076.0,1.38872396]
[1773154991729,0.00519881,2077.3,2076.0,1.38872396]
[1773154992030,0.00981051,2077.3,2076.0,1.38872396]
[1773154992230,6.96957402,2077.2,2076.0,1.38872396]
[1773154992430,0.66992457,2076.7,2075.7,1.41125199]
[1773154992636,0.66992457,2076.7,2074.7,6.16906]
[1773154992637,0.66531287,2076.5,2074.9,0.24096]
[1773154992930,0.24071,2077.0,2074.7,5.92808]
[1773154992931,6.302,2076.4,2075.2,1.41125199]
[1773154993135,6.3066117,2076.4,2075.2,1.41125199]
[1773154993331,0.67411717,2076.3,2075.2,1.41125199]
[1773154993532,0.67411717,2076.9,2075.2,1.41611451]
[1773154993834,0.67411717,2076.7,2075.4,1.40527335]
[1773154994029,0.67411717,2076.8,2075.4,1.40527335]
[1773154994333,0.67066185,2076.6,2075.4,1.40527335]
[1773154994535,0.67066185,2076.4,2075.4,1.40527335]
[1773154994829,0.67066185,2077.1,2075.4,1.40527335]
[1773154995028,0.67066185,2076.9,2075.4,1.40527335]
[1773154995631,6.304,2076.8,2075.4,1.40527335]
[1773154995826,0.69742411,2076.7,2075.4,1.40527335]
[1773154996734,0.69376062,2077.1,2075.4,1.40527335]
[1773154996935,0.69376062,2076.9,2075.4,1.40527335]
[1773154997138,0.69376062,2076.7,2075.4,1.40527335]
[1773154997633,0.0046117,2076.5,2075.4,1.40527335]
[1773154997833,0.67490592,2076.5,2075.4,1.40527335]
[1773154998030,0.67490592,2076.8,2075.4,1.40527335]
[1773154998232,0.67490592,2076.5,2075.4,1.40527335]
[1773154998632,0.0046117,2076.0,2075.4,1.40527335]
[1773154998837,6.306,2076.0,2075.4,1.40527335]
[1773154999233,0.0046117,2075.7,2075.3,1.66432381]
[1773154999538,0.00421111,2075.7,2075.2,1.66918633]
[1773154999837,0.70387445,2076.4,2075.2,1.66918633]
[1773155000133,6.306,2076.3,2075.2,1.66918633]
[1773155000533,0.70387445,2076.6,2075.2,1.66918633]
[1773155000739,6.306,2076.5,2075.2,1.66918633]